[Event "Titled Tuesday Blitz May 23 Late 2023"]
[White "Reprintsev, Alexander"]
[Black "Fernandez Guillen, Ernesto J."]
[WhiteFideId "14100541"]
[BlackFideId "3512428"]
[WhiteElo "2218"]
[BlackElo "2429"]
[Result "0-1"]
[Round "03"]
[TimeControl "180+2"]
[Date "2023.05.23"]
[WhiteClock "0:00:10"]
[BlackClock "0:00:16"]

1. e4 {[%clk 0:03:00]}  e5 {[%clk 0:02:55]} 2. Nf3 {[%clk 0:02:59]}  Nc6 {[%clk 0:02:36]} 3. Bc4 {[%clk 0:02:59]}  g6 {[%clk 0:02:36]} 4. c3 {[%clk 0:02:50]}  Bg7 {[%clk 0:02:34]} 5. d4 {[%clk 0:02:47]}  d6 {[%clk 0:02:31]} 6. Qb3 {[%clk 0:02:41]}  Qe7 {[%clk 0:02:30]} 7. Bg5 {[%clk 0:02:34]}  Nf6 {[%clk 0:02:29]} 8. dxe5 {[%clk 0:02:30]}  dxe5 {[%clk 0:02:28]} 9. Nbd2 {[%clk 0:02:29]}  O-O {[%clk 0:02:27]} 10. O-O-O {[%clk 0:02:15]}  h6 {[%clk 0:02:25]} 11. Bh4 {[%clk 0:02:09]}  a6 {[%clk 0:02:20]} 12. Bd5 {[%clk 0:02:03]}  g5 {[%clk 0:02:09]} 13. Bg3 {[%clk 0:02:00]}  Nh5 {[%clk 0:01:57]} 14. Bxc6 {[%clk 0:01:55]}  bxc6 {[%clk 0:01:58]} 15. Qc4 {[%clk 0:01:55]}  Rb8 {[%clk 0:01:53]} 16. Nb3 {[%clk 0:01:44]}  Nf4 {[%clk 0:01:33]} 17. Bxf4 {[%clk 0:01:33]}  exf4 {[%clk 0:01:32]} 18. Qxc6 {[%clk 0:01:31]}  Rb6 {[%clk 0:01:28]} 19. Qc5 {[%clk 0:01:27]}  Qxe4 {[%clk 0:01:28]} 20. Rhe1 {[%clk 0:01:26]}  Qb7 {[%clk 0:01:27]} 21. Nfd4 {[%clk 0:01:22]}  Qxg2 {[%clk 0:01:20]} 22. Qxc7 {[%clk 0:01:20]}  Rb7 {[%clk 0:01:20]} 23. Qd6 {[%clk 0:01:06]}  Qxf2 {[%clk 0:01:14]} 24. Re2 {[%clk 0:01:04]}  Qh4 {[%clk 0:01:15]} 25. Nc5 {[%clk 0:01:00]}  Rb5 {[%clk 0:01:06]} 26. Nxb5 {[%clk 0:00:58]}  axb5 {[%clk 0:01:07]} 27. Rde1 {[%clk 0:00:57]}  f3 {[%clk 0:01:03]} 28. Re4 {[%clk 0:00:48]}  f2 {[%clk 0:01:02]} 29. Rf1 {[%clk 0:00:48]}  Qh3 {[%clk 0:00:33]} 30. Rxf2 {[%clk 0:00:44]}  Bf5 {[%clk 0:00:33]} 31. Ree2 {[%clk 0:00:41]}  Bg6 {[%clk 0:00:29]} 32. Qg3 {[%clk 0:00:26]}  Qc8 {[%clk 0:00:24]} 33. Ne4 {[%clk 0:00:26]}  Qa6 {[%clk 0:00:23]} 34. a3 {[%clk 0:00:25]}  b4 {[%clk 0:00:23]} 35. cxb4 {[%clk 0:00:20]}  Qc4+ {[%clk 0:00:22]} 36. Kb1 {[%clk 0:00:19]}  Bxe4+ {[%clk 0:00:21]} 37. Rxe4 {[%clk 0:00:19]}  Qxe4+ {[%clk 0:00:21]} 38. Ka2 {[%clk 0:00:18]}  f5 {[%clk 0:00:21]} 39. Qb3+ {[%clk 0:00:17]}  Kh8 {[%clk 0:00:21]} 40. b5 {[%clk 0:00:17]}  f4 {[%clk 0:00:21]} 41. b6 {[%clk 0:00:17]}  Qe3 {[%clk 0:00:19]} 42. Rc2 {[%clk 0:00:12]}  Qxb3+ {[%clk 0:00:18]} 43. Kxb3 {[%clk 0:00:13]}  Rb8 {[%clk 0:00:18]} 44. Kc4 {[%clk 0:00:11]}  Rxb6 {[%clk 0:00:18]} 45. Kd5 {[%clk 0:00:12]}  f3 {[%clk 0:00:18]} 46. Rf2 {[%clk 0:00:11]}  g4 {[%clk 0:00:18]} 47. h3 {[%clk 0:00:12]}  Rxb2 {[%clk 0:00:17]} 48. Rf1 {[%clk 0:00:11]}  h5 {[%clk 0:00:17]} 49. hxg4 {[%clk 0:00:11]}  hxg4 {[%clk 0:00:18]} 50. Ke6 {[%clk 0:00:12]}  g3 {[%clk 0:00:16]} 51. Kf7 {[%clk 0:00:11]}  Rb7+ {[%clk 0:00:14]} 52. Kg6 {[%clk 0:00:11]}  f2 {[%clk 0:00:15]} 53. Rh1+ {[%clk 0:00:11]}  Kg8 {[%clk 0:00:15]} 54. Rd1 {[%clk 0:00:11]}  Rb6+ {[%clk 0:00:16]} 55. Kg5 {[%clk 0:00:10]}  g2 {[%clk 0:00:16]} 0-1


[Site "https://www.chess.com"]

[Event "Titled Tuesday Blitz May 23 Late 2023"]
[White "Milikow, Yoav"]
[Black "Kisic, Bozidar"]
[WhiteFideId "2822237"]
[BlackFideId "16500350"]
[WhiteElo "2410"]
[BlackElo "2234"]
[Result "1-0"]
[Round "03"]
[TimeControl "180+2"]
[Date "2023.05.23"]
[WhiteClock "0:01:34"]
[BlackClock "0:00:05"]

1. d4 {[%clk 0:03:00]}  d5 {[%clk 0:02:55]} 2. c4 {[%clk 0:03:00]}  e6 {[%clk 0:02:53]} 3. Nc3 {[%clk 0:02:59]}  c5 {[%clk 0:02:53]} 4. cxd5 {[%clk 0:02:59]}  cxd4 {[%clk 0:02:53]} 5. Qa4+ {[%clk 0:02:59]}  Bd7 {[%clk 0:02:49]} 6. Qxd4 {[%clk 0:02:51]}  exd5 {[%clk 0:02:50]} 7. Qxd5 {[%clk 0:02:49]}  Nf6 {[%clk 0:02:48]} 8. Qd1 {[%clk 0:02:48]}  Nc6 {[%clk 0:02:43]} 9. Nf3 {[%clk 0:02:48]}  Bc5 {[%clk 0:02:40]} 10. e3 {[%clk 0:02:48]}  Qe7 {[%clk 0:02:40]} 11. Be2 {[%clk 0:02:48]}  O-O-O {[%clk 0:02:40]} 12. O-O {[%clk 0:02:49]}  g5 {[%clk 0:02:40]} 13. Qc2 {[%clk 0:02:36]}  h5 {[%clk 0:02:09]} 14. Nxg5 {[%clk 0:02:14]}  h4 {[%clk 0:01:57]} 15. Nce4 {[%clk 0:02:04]}  Bb6 {[%clk 0:01:04]} 16. Bf3 {[%clk 0:01:50]}  Rhg8 {[%clk 0:00:56]} 17. Nxf7 {[%clk 0:01:48]}  Nxe4 {[%clk 0:00:37]} 18. Nxd8 {[%clk 0:01:47]}  Nc5 {[%clk 0:00:17]} 19. Nxc6 {[%clk 0:01:45]}  bxc6 {[%clk 0:00:08]} 20. Qc4 {[%clk 0:01:35]}  Bh3 {[%clk 0:00:05]} 21. Qxg8+ {[%clk 0:01:34]} 1-0


[Site "https://www.chess.com"]

[Event "Titled Tuesday Blitz May 23 Late 2023"]
[White "Timmermans, Mark"]
[Black "Carlsen, Magnus"]
[WhiteFideId "1026399"]
[BlackFideId "1503014"]
[WhiteElo "2460"]
[BlackElo "2852"]
[Result "0-1"]
[Round "03"]
[TimeControl "180+2"]
[Date "2023.05.23"]
[WhiteClock "0:00:40"]
[BlackClock "0:01:54"]

1. e4 {[%clk 0:03:00]}  d5 {[%clk 0:02:54]} 2. exd5 {[%clk 0:02:59]}  Qxd5 {[%clk 0:02:55]} 3. Nc3 {[%clk 0:02:59]}  Qd6 {[%clk 0:02:56]} 4. Nf3 {[%clk 0:02:58]}  Nf6 {[%clk 0:02:55]} 5. d4 {[%clk 0:02:59]}  a6 {[%clk 0:02:56]} 6. g3 {[%clk 0:02:57]}  b5 {[%clk 0:02:53]} 7. Bg2 {[%clk 0:02:54]}  Bb7 {[%clk 0:02:54]} 8. O-O {[%clk 0:02:53]}  e6 {[%clk 0:02:54]} 9. Bf4 {[%clk 0:02:52]}  Qb6 {[%clk 0:02:53]} 10. Re1 {[%clk 0:02:46]}  Be7 {[%clk 0:02:51]} 11. Ne5 {[%clk 0:02:29]}  Bxg2 {[%clk 0:02:51]} 12. Kxg2 {[%clk 0:02:30]}  Qb7+ {[%clk 0:02:51]} 13. Qf3 {[%clk 0:02:29]}  Qxf3+ {[%clk 0:02:51]} 14. Kxf3 {[%clk 0:02:30]}  c6 {[%clk 0:02:39]} 15. a4 {[%clk 0:02:17]}  b4 {[%clk 0:02:39]} 16. Nb1 {[%clk 0:02:14]}  Nd5 {[%clk 0:02:39]} 17. Nd2 {[%clk 0:02:00]}  Nd7 {[%clk 0:02:36]} 18. Ndc4 {[%clk 0:01:59]}  Nxe5+ {[%clk 0:02:30]} 19. Bxe5 {[%clk 0:01:54]}  O-O {[%clk 0:02:23]} 20. Bd6 {[%clk 0:01:51]}  Rfd8 {[%clk 0:02:22]} 21. Bxe7 {[%clk 0:01:37]}  Nxe7 {[%clk 0:02:23]} 22. Rad1 {[%clk 0:01:29]}  Rab8 {[%clk 0:02:21]} 23. Ke4 {[%clk 0:01:27]}  f6 {[%clk 0:02:19]} 24. f4 {[%clk 0:01:23]}  Kf7 {[%clk 0:02:19]} 25. Rd3 {[%clk 0:01:18]}  h5 {[%clk 0:02:19]} 26. Nd2 {[%clk 0:01:11]}  Rd5 {[%clk 0:02:14]} 27. Nb3 {[%clk 0:01:10]}  Nf5 {[%clk 0:02:13]} 28. h3 {[%clk 0:01:05]}  Nd6+ {[%clk 0:02:13]} 29. Kf3 {[%clk 0:01:05]}  Nc4 {[%clk 0:02:13]} 30. Rb1 {[%clk 0:01:05]}  Rbd8 {[%clk 0:02:12]} 31. Ke4 {[%clk 0:00:55]}  g5 {[%clk 0:02:03]} 32. fxg5 {[%clk 0:00:52]}  Rxg5 {[%clk 0:02:02]} 33. c3 {[%clk 0:00:47]}  Rdg8 {[%clk 0:01:57]} 34. Kf4 {[%clk 0:00:47]}  Rf5+ {[%clk 0:01:55]} 35. Ke4 {[%clk 0:00:45]}  Nd6+ {[%clk 0:01:52]} 36. Ke3 {[%clk 0:00:45]}  Rxg3+ {[%clk 0:01:52]} 37. Ke2 {[%clk 0:00:46]}  Rg2+ {[%clk 0:01:53]} 38. Ke3 {[%clk 0:00:41]}  Nc4+ {[%clk 0:01:52]} 39. Ke4 {[%clk 0:00:41]}  Re2+ {[%clk 0:01:53]} 40. Re3 {[%clk 0:00:40]}  Rxe3# {[%clk 0:01:54]} 0-1


[Site "https://www.chess.com"]

[Event "Titled Tuesday Blitz May 23 Late 2023"]
[White "MKlose11"]
[Black "Naroditsky, Daniel"]
[BlackFideId "2026961"]
[WhiteElo "2673"]
[BlackElo "2633"]
[Result "0-1"]
[Round "03"]
[TimeControl "180+2"]
[Date "2023.05.23"]
[WhiteClock "0:00:02"]
[BlackClock "0:00:03"]

1. e4 {[%clk 0:03:00]}  c5 {[%clk 0:02:59]} 2. Nc3 {[%clk 0:02:46]}  a6 {[%clk 0:02:58]} 3. g3 {[%clk 0:02:47]}  b5 {[%clk 0:02:57]} 4. Bg2 {[%clk 0:02:47]}  Bb7 {[%clk 0:02:57]} 5. d3 {[%clk 0:02:47]}  e6 {[%clk 0:02:57]} 6. Nh3 {[%clk 0:02:48]}  d6 {[%clk 0:02:54]} 7. O-O {[%clk 0:02:48]}  Nd7 {[%clk 0:02:54]} 8. f4 {[%clk 0:02:48]}  Ngf6 {[%clk 0:02:54]} 9. f5 {[%clk 0:02:44]}  e5 {[%clk 0:02:31]} 10. g4 {[%clk 0:02:44]}  h6 {[%clk 0:02:30]} 11. Nf2 {[%clk 0:02:32]}  Be7 {[%clk 0:02:30]} 12. a4 {[%clk 0:02:27]}  b4 {[%clk 0:02:22]} 13. Ne2 {[%clk 0:02:21]}  d5 {[%clk 0:02:16]} 14. Ng3 {[%clk 0:02:12]}  Qc7 {[%clk 0:01:59]} 15. b3 {[%clk 0:02:11]}  c4 {[%clk 0:01:56]} 16. exd5 {[%clk 0:02:05]}  cxb3 {[%clk 0:01:54]} 17. cxb3 {[%clk 0:01:59]}  Nxd5 {[%clk 0:01:53]} 18. Nfe4 {[%clk 0:01:57]}  Nc3 {[%clk 0:01:46]} 19. Qf3 {[%clk 0:01:46]}  Nc5 {[%clk 0:01:44]} 20. Be3 {[%clk 0:01:36]}  Nxb3 {[%clk 0:01:39]} 21. Nf6+ {[%clk 0:01:36]}  Bxf6 {[%clk 0:01:25]} 22. Qxb7 {[%clk 0:01:35]}  Qxb7 {[%clk 0:01:19]} 23. Bxb7 {[%clk 0:01:36]}  Rb8 {[%clk 0:01:18]} 24. Bc6+ {[%clk 0:01:35]}  Ke7 {[%clk 0:01:19]} 25. Rae1 {[%clk 0:01:35]}  Rhc8 {[%clk 0:01:19]} 26. Bg2 {[%clk 0:01:28]}  Nxa4 {[%clk 0:01:19]} 27. d4 {[%clk 0:01:24]}  Kf8 {[%clk 0:01:14]} 28. dxe5 {[%clk 0:01:22]}  Bxe5 {[%clk 0:01:15]} 29. f6 {[%clk 0:01:23]}  Bxf6 {[%clk 0:01:11]} 30. Nh5 {[%clk 0:01:23]}  Re8 {[%clk 0:00:39]} 31. Nxf6 {[%clk 0:01:19]}  gxf6 {[%clk 0:00:40]} 32. Rxf6 {[%clk 0:01:14]}  Nc3 {[%clk 0:00:33]} 33. Bxh6+ {[%clk 0:01:04]}  Kg8 {[%clk 0:00:33]} 34. Ref1 {[%clk 0:01:05]}  Re6 {[%clk 0:00:31]} 35. g5 {[%clk 0:00:46]}  Rxf6 {[%clk 0:00:27]} 36. gxf6 {[%clk 0:00:47]}  Nd4 {[%clk 0:00:25]} 37. Kf2 {[%clk 0:00:37]}  b3 {[%clk 0:00:26]} 38. Bf4 {[%clk 0:00:27]}  Rb4 {[%clk 0:00:15]} 39. Bd2 {[%clk 0:00:15]}  Ndb5 {[%clk 0:00:15]} 40. Bf3 {[%clk 0:00:13]}  b2 {[%clk 0:00:04]} 41. Rg1+ {[%clk 0:00:13]}  Kf8 {[%clk 0:00:05]} 42. Bc6 {[%clk 0:00:10]}  Ne4+ {[%clk 0:00:05]} 43. Bxe4 {[%clk 0:00:09]}  Rxe4 {[%clk 0:00:06]} 44. Rb1 {[%clk 0:00:03]}  Re6 {[%clk 0:00:06]} 45. Rxb2 {[%clk 0:00:02]}  Rxf6+ {[%clk 0:00:07]} 46. Kg3 {[%clk 0:00:02]}  Kg7 {[%clk 0:00:05]} 47. Bb4 {[%clk 0:00:03]}  Rc6 {[%clk 0:00:05]} 48. Kf3 {[%clk 0:00:03]}  Rc4 {[%clk 0:00:05]} 49. Ke3 {[%clk 0:00:03]}  f5 {[%clk 0:00:05]} 50. Kd3 {[%clk 0:00:03]}  Rh4 {[%clk 0:00:04]} 51. Ke3 {[%clk 0:00:04]}  Kf7 {[%clk 0:00:04]} 52. Rf2 {[%clk 0:00:03]}  Rxb4 {[%clk 0:00:04]} 53. Rxf5+ {[%clk 0:00:04]}  Ke6 {[%clk 0:00:04]} 54. Rh5 {[%clk 0:00:04]}  a5 {[%clk 0:00:05]} 55. Kd3 {[%clk 0:00:03]}  a4 {[%clk 0:00:04]} 56. h4 {[%clk 0:00:03]}  a3 {[%clk 0:00:05]} 57. Rh6+ {[%clk 0:00:04]}  Kf5 {[%clk 0:00:05]} 58. Ra6 {[%clk 0:00:04]}  Rb2 {[%clk 0:00:05]} 59. h5 {[%clk 0:00:05]}  Kg4 {[%clk 0:00:03]} 60. h6 {[%clk 0:00:05]}  Rh2 {[%clk 0:00:03]} 61. Kc4 {[%clk 0:00:04]}  Nc7 {[%clk 0:00:02]} 62. Rxa3 {[%clk 0:00:03]}  Rxh6 {[%clk 0:00:02]} 63. Ra7 {[%clk 0:00:04]}  Rc6+ {[%clk 0:00:03]} 64. Kd4 {[%clk 0:00:04]}  Nb5+ {[%clk 0:00:02]} 65. Kd5 {[%clk 0:00:02]}  Nxa7 {[%clk 0:00:03]} 0-1


[Site "https://www.chess.com"]

[Event "Titled Tuesday Blitz May 23 Late 2023"]
[White "Krallis, Christos"]
[Black "Checa, Nicolas"]
[WhiteFideId "4298896"]
[BlackFideId "2069342"]
[WhiteElo "2243"]
[BlackElo "2507"]
[Result "1/2-1/2"]
[Round "03"]
[TimeControl "180+2"]
[Date "2023.05.23"]
[WhiteClock "0:00:10"]
[BlackClock "0:01:10"]

1. d4 {[%clk 0:03:00]}  d5 {[%clk 0:02:59]} 2. c4 {[%clk 0:03:00]}  c6 {[%clk 0:02:59]} 3. Nf3 {[%clk 0:02:59]}  Nf6 {[%clk 0:02:59]} 4. e3 {[%clk 0:02:53]}  a6 {[%clk 0:02:58]} 5. Nc3 {[%clk 0:02:51]}  Bf5 {[%clk 0:02:58]} 6. Bd3 {[%clk 0:02:47]}  Bg6 {[%clk 0:02:57]} 7. O-O {[%clk 0:02:46]}  e6 {[%clk 0:02:55]} 8. b3 {[%clk 0:02:44]}  Nbd7 {[%clk 0:02:54]} 9. Bb2 {[%clk 0:02:44]}  Bb4 {[%clk 0:02:50]} 10. Ne2 {[%clk 0:02:35]}  O-O {[%clk 0:02:47]} 11. Nf4 {[%clk 0:02:18]}  Bxd3 {[%clk 0:02:46]} 12. Nxd3 {[%clk 0:02:17]}  Bd6 {[%clk 0:02:47]} 13. Qc1 {[%clk 0:02:03]}  Re8 {[%clk 0:02:41]} 14. a4 {[%clk 0:01:57]}  h6 {[%clk 0:02:37]} 15. Ba3 {[%clk 0:01:56]}  Bc7 {[%clk 0:02:37]} 16. Rd1 {[%clk 0:01:53]}  Ne4 {[%clk 0:02:37]} 17. b4 {[%clk 0:01:38]}  b5 {[%clk 0:02:33]} 18. cxb5 {[%clk 0:01:35]}  cxb5 {[%clk 0:02:33]} 19. a5 {[%clk 0:01:31]}  Nd6 {[%clk 0:02:33]} 20. Nfe5 {[%clk 0:01:25]}  Nxe5 {[%clk 0:02:30]} 21. Nxe5 {[%clk 0:01:25]}  Nc4 {[%clk 0:02:31]} 22. Nxc4 {[%clk 0:01:23]}  bxc4 {[%clk 0:02:30]} 23. e4 {[%clk 0:01:08]}  Rb8 {[%clk 0:02:29]} 24. e5 {[%clk 0:01:08]}  Qd7 {[%clk 0:02:29]} 25. Qc3 {[%clk 0:01:01]}  Bd8 {[%clk 0:02:29]} 26. Bc1 {[%clk 0:00:58]}  Be7 {[%clk 0:02:28]} 27. Ba3 {[%clk 0:00:55]}  Rb5 {[%clk 0:02:26]} 28. Rdb1 {[%clk 0:00:44]}  Reb8 {[%clk 0:02:25]} 29. g3 {[%clk 0:00:40]}  Qe8 {[%clk 0:02:24]} 30. Rb2 {[%clk 0:00:40]}  Qf8 {[%clk 0:02:23]} 31. Rab1 {[%clk 0:00:40]}  f6 {[%clk 0:02:23]} 32. Qe3 {[%clk 0:00:38]}  fxe5 {[%clk 0:02:22]} 33. Qxe5 {[%clk 0:00:39]}  Qf6 {[%clk 0:02:21]} 34. Re2 {[%clk 0:00:35]}  Qxe5 {[%clk 0:02:13]} 35. Rxe5 {[%clk 0:00:35]}  Bxb4 {[%clk 0:02:13]} 36. Bxb4 {[%clk 0:00:35]}  Rxb4 {[%clk 0:02:14]} 37. Rxb4 {[%clk 0:00:35]}  Rxb4 {[%clk 0:02:14]} 38. Rxe6 {[%clk 0:00:36]}  c3 {[%clk 0:02:14]} 39. Re2 {[%clk 0:00:15]}  Rxd4 {[%clk 0:02:13]} 40. Rc2 {[%clk 0:00:15]}  Rc4 {[%clk 0:02:13]} 41. Kf1 {[%clk 0:00:15]}  d4 {[%clk 0:02:12]} 42. Ke2 {[%clk 0:00:15]}  Rb4 {[%clk 0:02:12]} 43. Kd3 {[%clk 0:00:14]}  Kf7 {[%clk 0:02:12]} 44. Re2 {[%clk 0:00:14]}  Rb2 {[%clk 0:01:45]} 45. Rxb2 {[%clk 0:00:11]}  cxb2 {[%clk 0:01:46]} 46. Kc2 {[%clk 0:00:11]}  Ke6 {[%clk 0:01:46]} 47. Kxb2 {[%clk 0:00:12]}  Kd5 {[%clk 0:01:47]} 48. Kc2 {[%clk 0:00:11]}  Kc4 {[%clk 0:01:34]} 49. f4 {[%clk 0:00:08]}  Kb4 {[%clk 0:01:32]} 50. g4 {[%clk 0:00:08]}  Kxa5 {[%clk 0:01:32]} 51. g5 {[%clk 0:00:08]}  hxg5 {[%clk 0:01:29]} 52. fxg5 {[%clk 0:00:09]}  Kb4 {[%clk 0:01:29]} 53. h4 {[%clk 0:00:10]}  a5 {[%clk 0:01:22]} 54. h5 {[%clk 0:00:10]}  a4 {[%clk 0:01:22]} 55. h6 {[%clk 0:00:11]}  a3 {[%clk 0:01:18]} 56. hxg7 {[%clk 0:00:10]}  d3+ {[%clk 0:01:18]} 57. Kxd3 {[%clk 0:00:08]}  a2 {[%clk 0:01:18]} 58. g8=Q {[%clk 0:00:08]}  a1=Q {[%clk 0:01:17]} 59. Qf8+ {[%clk 0:00:08]}  Kb5 {[%clk 0:01:16]} 60. Qf5+ {[%clk 0:00:08]}  Kc6 {[%clk 0:01:15]} 61. Ke4 {[%clk 0:00:04]}  Kd6 {[%clk 0:01:10]} 62. Qf4+ {[%clk 0:00:03]}  Ke6 {[%clk 0:01:09]} 63. Qf5+ {[%clk 0:00:03]}  Ke7 {[%clk 0:01:09]} 64. Qe5+ {[%clk 0:00:04]}  Qxe5+ {[%clk 0:01:08]} 65. Kxe5 {[%clk 0:00:05]}  Kf7 {[%clk 0:01:08]} 66. Kf5 {[%clk 0:00:06]}  Kg7 {[%clk 0:01:09]} 67. g6 {[%clk 0:00:07]}  Kg8 {[%clk 0:01:09]} 68. Kg5 {[%clk 0:00:07]}  Kg7 {[%clk 0:01:09]} 69. Kh5 {[%clk 0:00:08]}  Kg8 {[%clk 0:01:09]} 70. Kh6 {[%clk 0:00:09]}  Kh8 {[%clk 0:01:10]} 71. g7+ {[%clk 0:00:09]}  Kg8 {[%clk 0:01:10]} 72. Kg6 {[%clk 0:00:10]} 1/2-1/2


[Site "https://www.chess.com"]

[Event "Titled Tuesday Blitz May 23 Late 2023"]
[White "Paravyan, David"]
[Black "Goroshkov, Maksym"]
[WhiteFideId "4194985"]
[BlackFideId "14142716"]
[WhiteElo "2563"]
[BlackElo "2322"]
[Result "1-0"]
[Round "03"]
[TimeControl "180+2"]
[Date "2023.05.23"]
[WhiteClock "0:02:20"]
[BlackClock "0:00:15"]

1. e4 {[%clk 0:03:00]}  e5 {[%clk 0:03:00]} 2. Nf3 {[%clk 0:03:01]}  d6 {[%clk 0:03:00]} 3. d4 {[%clk 0:03:01]}  Bg4 {[%clk 0:03:00]} 4. dxe5 {[%clk 0:03:00]}  Nd7 {[%clk 0:03:01]} 5. Nc3 {[%clk 0:02:37]}  dxe5 {[%clk 0:02:59]} 6. Bc4 {[%clk 0:02:36]}  Ngf6 {[%clk 0:02:55]} 7. O-O {[%clk 0:02:33]}  Be7 {[%clk 0:02:53]} 8. h3 {[%clk 0:02:33]}  Bh5 {[%clk 0:02:52]} 9. Re1 {[%clk 0:02:33]}  O-O {[%clk 0:02:50]} 10. a4 {[%clk 0:02:33]}  c6 {[%clk 0:02:49]} 11. a5 {[%clk 0:02:31]}  Qc7 {[%clk 0:02:48]} 12. g4 {[%clk 0:02:30]}  Bg6 {[%clk 0:02:44]} 13. Nh4 {[%clk 0:02:30]}  Rfd8 {[%clk 0:02:31]} 14. Qf3 {[%clk 0:02:29]}  b5 {[%clk 0:02:20]} 15. axb6 {[%clk 0:02:28]}  axb6 {[%clk 0:02:18]} 16. Rxa8 {[%clk 0:02:28]}  Rxa8 {[%clk 0:02:18]} 17. Nxg6 {[%clk 0:02:28]}  hxg6 {[%clk 0:02:18]} 18. g5 {[%clk 0:02:29]}  b5 {[%clk 0:01:45]} 19. Bb3 {[%clk 0:02:25]}  Nc5 {[%clk 0:01:33]} 20. gxf6 {[%clk 0:02:24]}  gxf6 {[%clk 0:01:34]} 21. Be3 {[%clk 0:02:24]}  Nxb3 {[%clk 0:01:32]} 22. cxb3 {[%clk 0:02:25]}  Kg7 {[%clk 0:01:33]} 23. Kg2 {[%clk 0:02:25]}  Rh8 {[%clk 0:01:28]} 24. Ra1 {[%clk 0:02:25]}  Qd7 {[%clk 0:01:21]} 25. Ra7 {[%clk 0:02:23]}  Qe6 {[%clk 0:01:20]} 26. Qg4 {[%clk 0:02:24]}  f5 {[%clk 0:00:45]} 27. exf5 {[%clk 0:02:22]}  Qd6 {[%clk 0:00:40]} 28. Ne4 {[%clk 0:02:22]}  Qd8 {[%clk 0:00:20]} 29. Rxe7 {[%clk 0:02:20]}  Qd4 {[%clk 0:00:15]} 1-0


[Site "https://www.chess.com"]

[Event "Titled Tuesday Blitz May 23 Late 2023"]
[White "Piesik, Piotr"]
[Black "Ibarra Jerez, Jose Carlos"]
[WhiteFideId "1136194"]
[BlackFideId "2226332"]
[WhiteElo "2299"]
[BlackElo "2638"]
[Result "1/2-1/2"]
[Round "03"]
[TimeControl "180+2"]
[Date "2023.05.23"]
[WhiteClock "0:01:04"]
[BlackClock "0:00:10"]

1. Nf3 {[%clk 0:02:50]}  d6 {[%clk 0:02:58]} 2. d4 {[%clk 0:02:50]}  Nf6 {[%clk 0:02:57]} 3. Nbd2 {[%clk 0:02:49]}  Nbd7 {[%clk 0:02:54]} 4. g3 {[%clk 0:02:49]}  e5 {[%clk 0:02:54]} 5. dxe5 {[%clk 0:02:49]}  dxe5 {[%clk 0:02:55]} 6. Bg2 {[%clk 0:02:50]}  e4 {[%clk 0:02:54]} 7. Ng5 {[%clk 0:02:49]}  e3 {[%clk 0:02:55]} 8. fxe3 {[%clk 0:02:49]}  Ng4 {[%clk 0:02:50]} 9. Ndf3 {[%clk 0:02:43]}  Bc5 {[%clk 0:02:34]} 10. Nxf7 {[%clk 0:02:30]}  Kxf7 {[%clk 0:02:33]} 11. Qd5+ {[%clk 0:02:29]}  Kf8 {[%clk 0:02:06]} 12. Ng5 {[%clk 0:02:29]}  Qe7 {[%clk 0:01:26]} 13. Ne6+ {[%clk 0:02:25]}  Ke8 {[%clk 0:01:26]} 14. Nxc7+ {[%clk 0:02:24]}  Kd8 {[%clk 0:01:27]} 15. Nxa8 {[%clk 0:01:55]}  Rf8 {[%clk 0:01:09]} 16. Bd2 {[%clk 0:01:47]}  Nxe3 {[%clk 0:01:04]} 17. Bxe3 {[%clk 0:01:39]}  Qxe3 {[%clk 0:01:04]} 18. Rd1 {[%clk 0:01:05]}  Qf2+ {[%clk 0:01:02]} 19. Kd2 {[%clk 0:01:05]}  Qe3+ {[%clk 0:00:56]} 20. Ke1 {[%clk 0:01:03]}  Qf2+ {[%clk 0:00:25]} 21. Kd2 {[%clk 0:01:04]}  Qe3+ {[%clk 0:00:13]} 22. Ke1 {[%clk 0:01:04]}  Qf2+ {[%clk 0:00:10]} 23. Kd2 {[%clk 0:01:04]} 1/2-1/2


[Site "https://www.chess.com"]

[Event "Titled Tuesday Blitz May 23 Late 2023"]
[White "Wadsworth, Matthew J"]
[Black "Hambleton, Aman"]
[WhiteFideId "415804"]
[BlackFideId "2606577"]
[WhiteElo "2347"]
[BlackElo "2511"]
[Result "0-1"]
[Round "03"]
[TimeControl "180+2"]
[Date "2023.05.23"]
[WhiteClock "0:00:00"]
[BlackClock "0:00:03"]

1. c4 {[%clk 0:03:00]}  c5 {[%clk 0:02:45]} 2. g3 {[%clk 0:02:57]}  Nf6 {[%clk 0:02:42]} 3. Bg2 {[%clk 0:02:57]}  e6 {[%clk 0:02:42]} 4. Nf3 {[%clk 0:02:56]}  a6 {[%clk 0:02:23]} 5. O-O {[%clk 0:02:55]}  Qc7 {[%clk 0:02:12]} 6. Nc3 {[%clk 0:02:48]}  d6 {[%clk 0:02:11]} 7. b3 {[%clk 0:02:47]}  b6 {[%clk 0:02:09]} 8. d4 {[%clk 0:02:40]}  cxd4 {[%clk 0:02:10]} 9. Qxd4 {[%clk 0:02:40]}  Bb7 {[%clk 0:02:08]} 10. a4 {[%clk 0:02:25]}  Be7 {[%clk 0:02:03]} 11. a5 {[%clk 0:02:22]}  bxa5 {[%clk 0:02:04]} 12. Be3 {[%clk 0:02:08]}  Nbd7 {[%clk 0:01:41]} 13. Ra2 {[%clk 0:02:01]}  O-O {[%clk 0:01:27]} 14. Rfa1 {[%clk 0:02:01]}  Nc5 {[%clk 0:01:27]} 15. Qd1 {[%clk 0:01:53]}  Rab8 {[%clk 0:01:19]} 16. Bxc5 {[%clk 0:01:30]}  Qxc5 {[%clk 0:01:07]} 17. Rxa5 {[%clk 0:01:29]}  Qb4 {[%clk 0:01:07]} 18. Qc2 {[%clk 0:01:24]}  Rfc8 {[%clk 0:00:24]} 19. Nd2 {[%clk 0:01:02]}  d5 {[%clk 0:00:19]} 20. R5a4 {[%clk 0:00:28]}  Qb6 {[%clk 0:00:09]} 21. cxd5 {[%clk 0:00:20]}  exd5 {[%clk 0:00:01]} 22. Qd3 {[%clk 0:00:13]}  Rd8 {[%clk 0:00:01]} 23. e3 {[%clk 0:00:05]}  g6 {[%clk 0:00:02]} 24. Ne2 {[%clk 0:00:05]}  Bb4 {[%clk 0:00:02]} 25. Nd4 {[%clk 0:00:03]}  a5 {[%clk 0:00:02]} 26. R4a2 {[%clk 0:00:00]}  Ba6 {[%clk 0:00:03]} 0-1


[Site "https://www.chess.com"]